fUSD/lending_fUSD_20240415
["ID","MTS","AMOUNT","RATE_DAILY","PERIOD"]
[322680463,1713213032616,-506.0,0.00019178,2]
[322680464,1713213032625,-3868.29298528,0.000192,2]
[322680465,1713213032639,-393.81,0.0001934,2]
[322680466,1713213032650,-600.0,0.000194,2]
[322680468,1713213032659,-216.52,0.000194,2]
[322680469,1713213032669,-152.57,0.00019564,2]
[322680470,1713213032679,-156.44,0.00019637,2]
[322680471,1713213032689,-156.44,0.00019841,2]
[322680472,1713213032699,-400.0,0.00019854,2]
[322680473,1713213032710,-328.37,0.00019877,2]
[322680475,1713213032720,-499.99,0.00019907,2]
[322680477,1713213032729,-4485.91054215,0.0002,2]
[322680479,1713213032741,-5898.242,0.0002,2]
[322680487,1713213032847,-1450.28399832,0.0002,2]
[322680488,1713213032860,-316.79119983,0.0002,2]
[322680489,1713213032871,-460.48,0.0002,2]
[322680490,1713213032888,-1125.00000012,0.0002,2]
[322680491,1713213032899,-308.60746084,0.0002,2]
[322680492,1713213032911,-258.128903,0.0002,2]
[322680493,1713213032922,-266.27999998,0.0002,2]
[322680494,1713213032934,-752.4458828,0.0002,2]
[322680495,1713213033015,-2121.37763752,0.0002,2]
[322680496,1713213033027,-1194.85289494,0.0002,2]
[322680497,1713213033038,-3971.0701764,0.0002,2]
[322680498,1713213033057,-2828.37784562,0.0002,2]
[322680499,1713213033403,-1350.095658,0.0002,2]
[322680500,1713213033416,-3113.1,0.0002,2]
[322680501,1713213033427,-500.46990192,0.0002,2]
[322680502,1713213033439,-286.66009093,0.0002,2]
[322680503,1713213033450,-63538.27176917,0.0002,2]
[322680504,1713213033460,-156.44,0.00020046,2]
[322680505,1713213033469,-162.84,0.00020048,2]
[322680506,1713213033479,-995.0,0.000201,2]
[322680507,1713213033489,-418.54,0.00020192,2]
[322680508,1713213033499,-162.52,0.00020192,2]
[322680509,1713213033510,-162.84,0.00020192,2]
[322680510,1713213033519,-150.0,0.00020192,2]
[322680511,1713213033528,-162.52,0.00020192,2]
[322680512,1713213033538,-830.95,0.00020192,2]
[322680513,1713213033547,-156.44,0.00020251,2]
[322680514,1713213033556,-506.0,0.00020274,2]
[322680515,1713213033565,-156.83005285,0.00020333,2]
[322680516,1713213033576,-154.43586318,0.00020333,2]
[322680517,1713213033585,-154.43586316,0.00020414,2]
[322680518,1713213033595,-541.0,0.00020433,2]
[322680519,1713213033604,-1228.0,0.00020433,2]
[322680520,1713213033613,-458.161,0.00020433,2]
[322680521,1713213033622,-608.0,0.00020433,2]
[322680522,1713213033631,-1949.0,0.00020433,2]
[322680523,1713213033645,-214.068,0.00020433,2]
[322680524,1713213033654,-431.387,0.00020433,2]
[322680525,1713213033663,-806.0,0.00020433,2]
[322680526,1713213033673,-1472.0,0.00020433,2]
[322680527,1713213033682,-399.0,0.00020433,2]
[322680528,1713213033691,-3077.0,0.00020433,2]
[322680529,1713213033701,-1638.0,0.00020433,2]
[322680530,1713213033711,-214.0,0.00020433,2]
[322680531,1713213033720,-355.0,0.00020433,2]
[322680532,1713213033729,-443.0,0.00020433,2]
[322680533,1713213033739,-1737.0,0.00020433,2]
[322680534,1713213033748,-968.0,0.00020433,2]
[322680535,1713213033757,-5885.0,0.00020433,2]
[322680536,1713213033766,-5721.0,0.00020433,2]
[322680537,1713213033775,-37635.0,0.00020433,2]
[322680538,1713213033784,-2292.0,0.00020433,2]
[322680539,1713213033793,-1391.0,0.00020433,2]
[322680540,1713213033803,-461.0,0.00020433,2]
[322680541,1713213033812,-1054.0,0.00020433,2]
[322680542,1713213033822,-156.44,0.00020455,2]
[322680543,1713213033831,-150.0,0.00020466,2]
[322680544,1713213033841,-154.43586316,0.00020495,2]
[322680545,1713213033850,-150.0,0.000205,2]
[322680546,1713213033860,-154.43586316,0.00020576,2]
[322680547,1713213033869,-156.44,0.0002066,2]
[322680548,1713213033879,-1000.0,0.000207,2]
[322680549,1713213033891,-842.68633494,0.000207,2]
[322680550,1713213033901,-340.18873123,0.000207,2]
[322680551,1713213033911,-842.68633489,0.00020729,2]
[322680552,1713213033921,-842.68633489,0.00020757,2]
[322680553,1713213033930,-842.68633489,0.00020786,2]
[322680554,1713213033940,-2626.74107146,0.00020793,2]
[322680555,1713213033949,-161.03467572,0.00020794,2]
[322680556,1713213033959,-396.08451503,0.00020798,2]
[322680557,1713213033968,-616.61601776,0.00020798,2]
[322680558,1713213033977,-155.0,0.00020798,2]
[322680559,1713213033987,-266.93732489,0.00020798,2]
[322680560,1713213033996,-206.48280128,0.00020798,2]
[322680561,1713213034005,-325.20065423,0.00020798,2]
[322680562,1713213034014,-306.82378869,0.00020798,2]
[322680563,1713213034023,-156.17473524,0.00020798,2]
[322680564,1713213034032,-184.93400872,0.00020798,2]
[322680565,1713213034042,-2211.61171423,0.00020798,2]
[322680566,1713213034053,-365.5691864,0.00020798,2]
[322680567,1713213034063,-342.81596001,0.00020798,2]
[322680568,1713213034072,-3080.91191322,0.00020798,2]
[322680569,1713213034082,-269.54940391,0.00020798,2]
[322680570,1713213034091,-60344.04939295,0.00020799,2]
[322680571,1713213034100,-86847.30411038,0.000208,2]
[322680572,1713213034144,-74805.49996,0.000208,2]
[322680573,1713213034156,-30679.999987,0.000208,2]
[322680574,1713213034167,-52667.19594262,0.000208,2]
[322680575,1713213034176,-11672.38465743,0.000208,2]
[322680576,1713213034189,-45027.21324257,0.000208,2]
[322680577,1713213034198,-842.68633489,0.00020814,2]
[322680578,1713213034207,-200.0,0.00020832,2]
[322680579,1713213034216,-302.379778,0.00020832,2]
[322680580,1713213034226,-500.0,0.00020832,2]
[322680581,1713213034236,-842.68633489,0.00020843,2]
[322680582,1713213034246,-842.68633489,0.00020871,2]
[322680583,1713213034255,-152.14739066,0.00020892,2]
[322680584,1713213034264,-249.51626021,0.00020895,2]
[322680585,1713213034273,-1974.33901805,0.00020896,2]
[322680586,1713213034282,-249.51626018,0.00020896,2]
[322680587,1713213034292,-1974.33901797,0.00020896,2]
[322680588,1713213034302,-1974.33901797,0.00020897,2]
[322680589,1713213034311,-1974.33901797,0.00020897,2]
[322680590,1713213034320,-1974.33901797,0.00020897,2]
[322680591,1713213034329,-249.51626018,0.00020898,2]
[322680592,1713213034338,-1974.33901797,0.00020898,2]
[322680593,1713213034347,-213.0,0.00020898,2]
[322680594,1713213034357,-1974.33901797,0.00020898,2]
[322680595,1713213034366,-539.08227767,0.00020899,2]
[322680596,1713213034377,-1435.2567403,0.00020899,2]
[322680597,1713213034387,-249.51626018,0.00020899,2]
[322680598,1713213034396,-1974.33901797,0.00020899,2]
[322680599,1713213034405,-1974.33901797,0.00020899,2]
[322680600,1713213034415,-1974.33901797,0.000209,2]
[322680601,1713213034424,-7500.0,0.000209,2]
[322680602,1713213034433,-210.7921,0.000209,2]
[322680603,1713213034443,-1000.0,0.000209,2]
[322680604,1713213034452,-1974.33901797,0.000209,2]
[322680605,1713213034462,-249.51626018,0.000209,2]
[322680606,1713213034471,-200.12509949,0.000209,2]
[322680607,1713213034480,-351.0,0.000209,2]
[322680608,1713213034489,-646.66936091,0.000209,2]
[322680609,1713213034548,-353.33063909,0.000209,2]
[322680610,1713213034557,-217.80732397,0.000209,2]
[322680611,1713213034568,-400.0,0.000209,2]
[322680612,1713213034579,-3004.99999999,0.000209,2]
[322680613,1713213034590,-6450.0,0.000209,2]
[322680614,1713213034601,-13125.53380091,0.000209,2]
[322680615,1713213034612,-23320.71818476,0.000209,2]
[322680616,1713213034623,-404.0000001,0.000209,2]
[322680617,1713213034635,-326.34,0.000209,2]
[322680618,1713213034646,-420.0,0.000209,2]
[322680619,1713213034657,-619.88,0.000209,2]
[322680620,1713213034668,-1300.0,0.000209,2]
[322680621,1713213034679,-956.33828,0.000209,2]
[322680622,1713213035368,-693.43354933,0.000209,2]
[322680623,1713213035399,-3746.38281553,0.000209,2]
[322680624,1713213035411,-6481.68123966,0.000209,2]
[322680625,1713213035422,-1997.4276,0.000209,2]
[322680626,1713213035434,-1042.16772,0.000209,2]
[322680627,1713213035445,-1309.51,0.000209,2]
[322680628,1713213035457,-1486.7837916,0.000209,2]
[322680629,1713213035468,-647.77,0.000209,2]
[322680630,1713213035516,-594.47736839,0.000209,2]
[322680631,1713213035528,-919.32000046,0.000209,2]
[322680632,1713213035540,-630.85,0.000209,2]
[322680633,1713213035551,-564.07843079,0.000209,2]
[322680634,1713213035562,-2474.85663454,0.000209,2]
[322680635,1713213035574,-251.82359112,0.000209,2]
[322680636,1713213035585,-1936.3344,0.000209,2]
[322680637,1713213035596,-320.8465035,0.000209,2]
[322680638,1713213035664,-3004.5648687,0.000209,2]
[322680848,1713213043227,-154.43586316,0.00020657,2]
[322680851,1713213043237,-158.39418444,0.000207,2]
[322680855,1713213043247,-158.39418444,0.000207,2]
[322680859,1713213043256,-158.39418444,0.000207,2]
[322680863,1713213043265,-158.39418444,0.000207,2]
[322680870,1713213043274,-158.39418444,0.000207,2]
[322680875,1713213043283,-158.39418444,0.000207,2]
[322680879,1713213043292,-158.39418444,0.000207,2]
[322680883,1713213043301,-158.39418444,0.000207,2]
[322680885,1713213043310,-158.39418444,0.000207,2]
[322680888,1713213043319,-158.39418444,0.000207,2]
[322680891,1713213043328,-158.39418444,0.000207,2]
[322680892,1713213043338,-158.39418444,0.000207,2]
[322680894,1713213043347,-158.39418444,0.000207,2]
[322680895,1713213043356,-158.39418444,0.000207,2]
[322680897,1713213043365,-158.39418444,0.000207,2]
[322680899,1713213043375,-158.39418444,0.000207,2]
[322680900,1713213043384,-158.39418444,0.000207,2]
[322680901,1713213043395,-158.39418444,0.000207,2]
[322680902,1713213043405,-158.39418444,0.000207,2]
[322680903,1713213043415,-158.39418444,0.000207,2]
[322680904,1713213043424,-158.39418444,0.000207,2]
[322680905,1713213043434,-158.39418444,0.000207,2]
[322680906,1713213043443,-158.39418444,0.000207,2]
[322680907,1713213043452,-158.39418444,0.000207,2]
[322680908,1713213043462,-158.39418444,0.000207,2]
[322680909,1713213043471,-204.99865097,0.00020887,2]
[322680910,1713213043481,-2020.01087487,0.000209,2]
[322680911,1713213043492,-3160.26508562,0.000209,2]
[322680912,1713213043502,-5274.03857546,0.000209,2]
[322680913,1713213043511,-206.8894965,0.000209,2]
[322680914,1713213043520,-546.02399606,0.000209,2]
[322680915,1713213043529,-842.68633489,0.000209,2]
[322680916,1713213043538,-5507.21140862,0.000209,3]
[322680917,1713213043548,-172.13156991,0.000209,2]
[322680918,1713213043557,-162.06976837,0.00020916,2]
[322680919,1713213043566,-2337.416291,0.00020917,2]
[322680920,1713213043575,-3245.01728328,0.00020918,2]
[322680921,1713213043585,-1203.56226114,0.00020919,2]
[322680922,1713213043594,-1203.56226114,0.00020919,2]
[322680923,1713213043604,-153.77738745,0.0002092,2]
[322680924,1713213043614,-6940.53814218,0.00020922,2]
[322680925,1713213043623,-162.06976837,0.00020925,2]
[322680926,1713213043632,-162.06976837,0.00020925,2]
[322680927,1713213043642,-6940.53814218,0.00020926,2]
[322680928,1713213043655,-1128.75852009,0.00020928,2]
[322680929,1713213043664,-153.77738745,0.00020929,2]
[322680930,1713213043673,-1128.75852009,0.0002093,2]
[322680931,1713213043683,-3245.01728328,0.0002093,2]
[322680932,1713213043692,-162.06976837,0.00020931,2]
[322680933,1713213043702,-162.06976837,0.00020932,2]
[322680934,1713213043711,-1128.75852009,0.00020932,2]
[322680935,1713213043720,-12579.72538269,0.00020933,2]
[322680936,1713213043730,-6940.53814218,0.00020935,2]
[322680937,1713213043739,-6940.53814218,0.00020938,2]
[322680938,1713213043749,-162.06976837,0.0002094,2]
[322680939,1713213043757,-2337.416291,0.00020941,2]
[322680940,1713213043766,-6940.53814218,0.00020942,2]
[322680941,1713213043775,-6940.53814218,0.00020944,2]
[322680942,1713213043784,-3245.01728328,0.00020948,2]
[322680944,1713213043794,-3245.01728328,0.00020953,2]
[322680945,1713213043802,-2337.416291,0.00020953,2]
[322680946,1713213043812,-153.77738745,0.00020954,2]
[322680947,1713213043821,-3245.01728328,0.00020956,2]
[322680948,1713213043830,-12579.72538269,0.00020957,2]
[322680949,1713213043840,-1128.75852009,0.00020958,2]
[322680950,1713213043849,-12579.72538269,0.00020961,2]
[322680951,1713213043858,-1128.75852009,0.00020961,2]
[322680952,1713213043867,-1203.56226114,0.00020965,2]
[322680953,1713213043877,-3245.01728328,0.00020966,2]
[322680954,1713213043886,-153.77738745,0.00020967,2]
[322680955,1713213043897,-153.77738745,0.00020967,2]
[322680957,1713213043906,-1203.56226114,0.00020969,2]
[322680959,1713213043915,-2337.416291,0.0002097,2]
[322680961,1713213043925,-12579.72538269,0.00020971,2]
[322680963,1713213043934,-3245.01728328,0.00020971,2]
[322680965,1713213043943,-1128.75852009,0.00020972,2]
[322680967,1713213043952,-1128.75852009,0.00020972,2]
[322680969,1713213043962,-162.06976837,0.00020974,2]
[322680971,1713213043972,-3245.01728328,0.00020976,2]
[322680972,1713213043981,-153.77738745,0.00020978,2]
[322680974,1713213043991,-12579.72538269,0.0002098,2]
[322680976,1713213044000,-1203.56226114,0.00020981,2]
[322680978,1713213044009,-153.77738745,0.00020981,2]
[322680981,1713213044019,-2337.416291,0.00020982,2]
[322680983,1713213044028,-12579.72538269,0.00020982,2]
[322680985,1713213044038,-1203.56226114,0.00020983,2]
[322680988,1713213044048,-527.0,0.00020984,2]
[322680990,1713213044058,-1203.56226114,0.00020984,2]
[322680992,1713213044067,-3245.01728328,0.00020985,2]
[322680993,1713213044076,-1128.75852009,0.00020985,2]
[322680994,1713213044086,-12579.72538269,0.00020986,2]
[322680995,1713213044095,-12579.72538269,0.00020986,2]
[322680996,1713213044104,-153.77738745,0.00020987,2]
[322680997,1713213044113,-1203.56226114,0.00020987,2]
[322680998,1713213044122,-6940.53814218,0.00020992,2]
[322680999,1713213044131,-1203.56226114,0.00020992,2]
[322681000,1713213044142,-1128.75852009,0.00020993,2]
[322681001,1713213044157,-6940.53814218,0.00020994,2]
[322681002,1713213044166,-162.06976837,0.00020995,2]
[322681003,1713213044176,-12579.72538269,0.00020996,2]
[322681004,1713213044186,-2337.416291,0.00020996,2]
[322681005,1713213044195,-153.77738745,0.00020996,2]
[322681006,1713213044205,-6940.53814218,0.00020997,2]
[322681007,1713213044214,-162.06976837,0.00020997,2]
[322681008,1713213044223,-2337.416291,0.00020997,2]
[322681009,1713213044233,-200.0504774,0.00020998,2]
[322681010,1713213044243,-157.70892513,0.00020998,2]
[322681011,1713213044251,-155.0,0.00020998,2]
[322681012,1713213044261,-156.95369251,0.00020998,2]
[322681013,1713213044270,-155.2169784,0.00020998,2]
[322681014,1713213044279,-337.60824199,0.00020998,2]
[322681015,1713213044289,-3770.46184272,0.00020998,2]
[322681016,1713213044298,-4325.50196548,0.00020998,2]
[322681017,1713213044309,-5836.6670907,0.00020999,2]
[322681018,1713213044320,-155.0,0.00020999,2]
[322681019,1713213044329,-144297.71672555,0.00020999,2]
[322681020,1713213044339,-38258.16779892,0.00020999,2]
[322681021,1713213044348,-150.0,0.00020999,2]
[322681022,1713213044357,-12147.44589705,0.00020999,2]
[322681023,1713213044367,-206.9318143,0.00020999,2]
[322681024,1713213044376,-500.0,0.00020999,2]
[322681025,1713213044385,-500.0,0.00020999,2]
[322681026,1713213044399,-269.85910893,0.00020999,2]
[322681027,1713213044409,-295.70652593,0.00020999,2]
[322681028,1713213044419,-430.82205412,0.00020999,2]
[322681029,1713213044429,-500.0,0.00020999,2]
[322681030,1713213044438,-500.0,0.00020999,2]
[322681031,1713213044447,-500.0,0.00020999,2]
[322681032,1713213044457,-500.0,0.00020999,2]
[322681033,1713213044466,-500.0,0.00020999,2]
[322681034,1713213044476,-330.95773268,0.00020999,2]
[322681035,1713213044485,-500.0,0.00020999,2]
[322681036,1713213044494,-500.0,0.00020999,2]
[322681037,1713213044504,-500.0,0.00020999,2]
[322681038,1713213044513,-500.0,0.00020999,2]
[322681039,1713213044523,-189.98189383,0.00020999,2]
[322681040,1713213044532,-500.0,0.00020999,2]
[322681041,1713213044541,-350.0,0.00020999,2]
[322681042,1713213044551,-2337.416291,0.00020999,2]
[322681043,1713213044560,-2337.416291,0.00020999,2]
[322681044,1713213044569,-534719.94014258,0.00021,7]
[322681045,1713213044579,-402.65904851,0.00021,2]
[322681046,1713213044588,-5744221.14728164,0.00021,2]
[322681047,1713213044600,-375108.97446845,0.00021,2]
[322681048,1713213044715,-158.39418444,0.000207,2]
[322681049,1713213044726,-466.76983485,0.00021,2]
[322681050,1713213044737,-1283.2,0.00021,2]
[322681051,1713213044786,-2539.99999999,0.00021,2]
[322681052,1713213044797,-15738.48676975,0.00021,2]
[322681053,1713213044998,-158.39418444,0.000207,2]
[322681054,1713213045008,-86056.23967262,0.00021,2]
[322681055,1713213045019,-1826.25942456,0.00021,2]
[322681056,1713213045030,-4034.0299399,0.00021,2]
[322681057,1713213045043,-4464.75015773,0.00021,2]
[322681058,1713213045061,-15486.37002065,0.00021,2]
[322681059,1713213045072,-313.18496432,0.00021,2]
[322681060,1713213045083,-3781.05560194,0.00021,2]
[322681061,1713213045095,-3303.81439647,0.00021,2]
[322681062,1713213045106,-16289.28222576,0.00021,2]
[322681063,1713213045118,-540.47384381,0.00021,2]
[322681064,1713213045129,-1818.09821197,0.00021,2]
[322681065,1713213045141,-39629.48001673,0.00021,2]
[322681066,1713213045155,-968.45584737,0.00021,2]
[322681067,1713213045188,-579.75993534,0.00021,2]
[322681068,1713213045200,-6423.2968965,0.00021,2]
[322681069,1713213045212,-1681.81594384,0.00021,2]
[322681070,1713213045295,-158.39418444,0.000207,2]
[322681071,1713213045304,-59861.60581556,0.00021,2]
[322681072,1713213045317,-1209.9999998,0.00021,2]
[322681107,1713213046388,-158.39418444,0.000207,2]
[322681108,1713213046398,-1539.57900254,0.00021,2]
[322681109,1713213046523,-20387.49874412,0.00021,2]
[322681110,1713213046534,-889236.69650844,0.00021,2]
[322681111,1713213046652,-63412.06309823,0.00021,2]
[322681115,1713213046737,-23710.50189442,0.00021,2]
[322681116,1713213047214,-158.39418444,0.000207,2]
[322681117,1713213047225,-14841.60581556,0.00021,2]
[322681118,1713213047265,-158.39418444,0.000207,2]
[322681119,1713213047274,-119.52581555,0.00021,2]
[322681120,1713213047291,-380.96859876,0.00021,2]
[322681121,1713213047392,-3170388.80153206,0.00021,2]
[322681122,1713213049478,-158.39418444,0.000207,2]
[322681123,1713213049488,-158.39418444,0.000207,2]
[322681124,1713213049497,-158.39418444,0.000207,2]
[322681125,1713213049507,-158.39418444,0.000207,2]
[322681126,1713213049517,-158.39418444,0.000207,2]
[322681127,1713213049527,-158.39418444,0.00020718,2]
[322681128,1713213049537,-154.43586316,0.00020738,2]
[322681129,1713213049547,-158.39418444,0.00020783,2]
[322681130,1713213049556,-158.39418444,0.00020788,2]
[322681131,1713213049565,-158.39418444,0.00020788,2]
[322681132,1713213049574,-158.39418444,0.00020788,2]
[322681133,1713213049583,-158.39418444,0.00020789,2]
[322681134,1713213049592,-158.39418444,0.00020789,2]
[322681135,1713213049601,-158.39418444,0.00020789,2]
[322681136,1713213049610,-158.39418444,0.00020789,2]
[322681137,1713213049619,-158.39418444,0.00020789,2]
[322681138,1713213049628,-152.36796258,0.000209,2]
[322681139,1713213049637,-41654.99653165,0.00021,2]
[322681140,1713213049661,-208.65322947,0.000209,2]
[322681141,1713213049670,-2968.43827053,0.00021,2]
[322681142,1713213049745,-1199.97924296,0.00021,2]
[322681143,1713213049758,-678.25000005,0.00021,2]
[322681144,1713213049769,-2013.4999997,0.00021,2]
[322681145,1713213049792,-158.39418444,0.00020789,2]
[322681146,1713213049801,-477.48581556,0.00021,2]
[322681147,1713213049812,-332.00402996,0.00021,2]
[322681148,1713213051382,-444.688602,0.00020433,2]
[322681149,1713213051542,-783.311398,0.00020433,2]
[322681150,1713213051552,-541.0,0.00020433,2]
[322681151,1713213051563,-158.39418444,0.00020789,2]
[322681152,1713213051574,-101.99441756,0.00020789,2]
[322681153,1713213051586,-56.39976688,0.00020789,2]
[322681154,1713213051597,-158.39418444,0.00020789,2]
[322681155,1713213051607,-182.0769358,0.00021,2]
[322681156,1713213052062,-3868.29298528,0.00020916,2]
[322681157,1713213052072,-11166.18672252,0.00021,2]
[322681158,1713213255915,151.0,0.00027167,30]
[322681159,1713213257662,300.0,0.00017949,2]
[322681161,1713213512175,267.85,0.00025317,120]
[322681162,1713213512592,267.85,0.00027619,120]
[322681165,1713213616980,610.01,0.0001652,2]
[322681167,1713213717600,-244.1942891,0.00018039,2]
[322681168,1713213717621,-4327.16409571,0.00018039,2]
[322681169,1713213717641,-2953.64161519,0.0001804,2]
[322681170,1713213755444,-3755.16366527,0.00018038,2]
[322681171,1713213755466,-3772.4841615,0.00018045,2]
[322681172,1713213755487,-1781.56636107,0.00018046,2]
[322681173,1713213755508,-690.78581216,0.00018271,2]
[322681174,1713213779745,-8774.15418784,0.00018271,2]
[322681175,1713213779769,-267.85,0.00018413,2]
[322681176,1713213779789,-256.41,0.00018422,2]
[322681177,1713213779809,-480.0,0.00018434,2]
[322681178,1713213779829,-221.58581216,0.00018463,2]
[322681179,1713213801916,-3179.24,0.0001833,2]
[322681180,1713213801937,-8040.76,0.00018463,2]
[322681181,1713213821713,-19418.50813824,0.00018462,2]
[322681182,1713213821733,-581.49186176,0.00018463,2]
[322681183,1713213859066,-643.0,0.00033845,120]
[322681184,1713213859098,-500.0,0.00033845,60]
[322681185,1713213859127,-500.0,0.00033845,60]
[322681186,1713213859157,-500.0,0.00033845,60]
[322681187,1713213859187,-500.0,0.00033845,60]
[322681188,1713213859218,-500.0,0.00033845,60]
[322681189,1713213859247,-500.0,0.00033845,60]
[322681190,1713213859278,-504.43102521,0.00033845,60]
[322681191,1713213859308,-500.0,0.00033845,60]
[322681192,1713213859338,-500.0,0.00033845,60]
[322681193,1713213859367,-575.68124983,0.00033845,60]
[322681194,1713213859400,-500.0,0.00033845,60]
[322681195,1713213859433,-500.0,0.00033845,60]
[322681196,1713213859462,-500.0,0.00033845,60]
[322681197,1713213859492,-502.75517731,0.00033845,60]
[322681198,1713213859524,-500.0,0.00033845,60]
[322681199,1713213859556,-549.58042156,0.00033845,60]
[322681200,1713213859589,-501.73072337,0.00033845,60]
[322681201,1713213859620,-500.0,0.00033845,60]
[322681202,1713213859650,-411.19379056,0.00033845,60]
[322681203,1713213859681,-500.0,0.00033845,60]
[322681204,1713213859713,-500.0,0.00033845,60]
[322681205,1713213859742,-534.63328387,0.00033845,60]
[322681206,1713213859772,-500.0,0.00033845,60]
[322681207,1713213859803,-500.0,0.00033845,60]
[322681208,1713213859834,-500.0,0.00033845,60]
[322681209,1713213859867,-572.37218314,0.00033845,60]
[322681210,1713213859897,-500.0,0.00033845,60]
[322681211,1713213859927,-500.0,0.00033845,60]
[322681212,1713213859958,-506.56032431,0.00033845,60]
[322681213,1713213859988,-500.0,0.00033845,60]
[322681214,1713213860018,-275.06343498,0.00033845,60]
[322681215,1713213860050,-500.0,0.00033845,60]
[322681216,1713213860080,-500.0,0.00033845,60]
[322681217,1713213860111,-625.18694321,0.00033845,60]
[322681218,1713213860141,-500.0,0.00033845,60]
[322681219,1713213860172,-500.0,0.00033845,60]
[322681220,1713213860204,-500.0,0.00033845,60]
[322681221,1713213860239,-221.40220961,0.00033845,60]
[322681222,1713213860276,-491.2314045,0.00033845,60]
[322681223,1713213860310,-454.56093765,0.00033845,60]
[322681224,1713213860343,-623.89690476,0.00033845,60]
[322681225,1713213860377,-595.48948614,0.00033845,60]
[322681226,1713213860412,-500.0,0.00033845,60]
[322681227,1713213860445,-505.40139019,0.00033845,60]
[322681228,1713213860479,-503.18361897,0.00033845,60]
[322681229,1713213860511,-496.71971186,0.00033845,60]
[322681230,1713213860546,-500.0,0.00033845,60]
[322681231,1713213860581,-525.95602825,0.00033845,60]
[322681232,1713213860614,-500.0,0.00033845,60]
[322681233,1713213860645,-500.0,0.00033845,60]
[322681234,1713213860677,-500.0,0.00033845,60]
[322681235,1713213860710,-500.0,0.00033845,60]
[322681236,1713213860744,-505.87562219,0.00033845,60]
[322681237,1713213860779,-500.0,0.00033845,60]
[322681238,1713213860814,-500.0,0.00033845,60]
[322681239,1713213860846,-567.04039315,0.00033845,60]
[322681240,1713213860880,-500.0,0.00033845,60]
[322681241,1713213860912,-500.0,0.00033845,60]
[322681242,1713213860943,-525.11487028,0.00033845,60]
[322681243,1713213860977,-500.0,0.00033845,60]
[322681244,1713213861010,-500.0,0.00033845,60]
[322681245,1713213861042,-500.0,0.00033845,60]
[322681246,1713213861074,-500.0,0.00033845,60]
[322681247,1713213861107,-511.48098107,0.00033845,60]
[322681248,1713213861139,-500.0,0.00033845,60]
[322681249,1713213861172,-411.67800297,0.00033845,60]
[322681250,1713213861204,-569.47620672,0.00033845,60]
[322681251,1713213861236,-406.69682493,0.00033845,60]
[322681252,1713213861274,-500.0,0.00033845,60]
[322681253,1713213861307,-500.0,0.00033845,60]
[322681254,1713213861342,-532.77876744,0.00033845,60]
[322681255,1713213861374,-500.0,0.00033845,60]
[322681256,1713213861409,-500.0,0.00033845,60]
[322681257,1713213861443,-500.0,0.00033845,60]
[322681258,1713213861478,-511.45385401,0.00033845,60]
[322681259,1713213861517,-500.0,0.00033845,60]
[322681260,1713213861554,-500.0,0.00033845,60]
[322681261,1713213861589,-500.0,0.00033845,60]
[322681262,1713213861624,-500.0,0.00033845,60]
[322681263,1713213861659,-500.0,0.00033845,60]
[322681264,1713213861984,-500.0,0.00033845,60]
[322681265,1713213862027,-398.7178918,0.00033845,60]
[322681266,1713213862061,-500.0,0.00033845,60]
[322681267,1713213862094,-500.0,0.00033845,60]
[322681268,1713213862127,-534.46483632,0.00033845,60]
[322681269,1713213862159,-500.0,0.00033845,60]
[322681270,1713213862190,-500.0,0.00033845,60]
[322681271,1713213862222,-243.44655914,0.00033845,60]
[322681272,1713213862255,-504.42032419,0.00033845,60]
[322681273,1713213862291,-500.0,0.00033845,60]
[322681274,1713213862325,-500.0,0.00033845,60]
[322681275,1713213862357,-500.0,0.00033845,60]
[322681276,1713213862389,-500.0,0.00033845,60]
[322681277,1713213862421,-501.55610615,0.00033845,60]
[322681278,1713213862455,-500.0,0.00033845,60]